bitfinex-derivatives/quotes_ETHF0:USTF0_20210705
["timestamp","ask_amount","ask_price","bid_price","bid_amount"]
[1625480800857,1.0,2299.6,2299.3,0.0001]
[1625480800956,2.756,2299.7,2299.3,0.0001]
[1625480801053,1.0,2299.6,2299.3,0.0001]
[1625480801154,3.23,2299.6,2299.3,0.0001]
[1625480801453,4.41054,2299.4,2299.3,0.0001]
[1625480802208,5.41054,2299.4,2299.3,0.0001]
[1625480807618,4.41054,2299.4,2299.3,0.0001]
[1625480808319,1.8805,2300.1,2299.3,0.0001]
[1625480808419,1.0,2300.1,2299.3,0.0001]
[1625480809472,4.41054,2299.4,2299.3,0.0001]
[1625480809822,5.41054,2299.4,2299.3,0.0001]
[1625480810525,4.41054,2299.4,2299.3,0.0001]
[1625480810723,5.41054,2299.4,2299.3,0.0001]
[1625480811981,4.41054,2299.4,2299.3,0.0001]
[1625480812282,5.41054,2299.4,2299.3,0.0001]
[1625480812531,4.41054,2299.4,2299.3,0.0001]
[1625480813183,5.41054,2299.4,2299.3,0.0001]
[1625480826329,6.26764,2299.4,2299.3,0.0001]
[1625480828787,5.41054,2299.4,2299.3,0.0001]
[1625480829690,7.20939357,2299.4,2299.3,0.0001]
[1625480830240,8.08799357,2299.4,2299.3,0.0001]
[1625480830690,6.28914,2299.4,2299.3,0.0001]
[1625480831090,6.28914,2299.4,2298.2,2.20527]
[1625480831191,5.0,2299.3,2297.8,1.69039939]
[1625480831293,1.0,2299.2,2297.8,1.69039939]
[1625480831392,3.259,2299.2,2297.8,1.69039939]
[1625480831493,5.0,2299.1,2297.8,1.69039939]
[1625480831595,5.0,2299.1,2297.4,2.38888393]
[1625480831596,4.41054,2297.9,2297.4,2.38888393]
[1625480831695,3.768,2297.8,2297.2,2.92664977]
[1625480831793,8.768,2297.8,2297.0,4.10843231]
[1625480831892,8.768,2297.8,2297.0,4.04543231]
[1625480831995,51.3124,2297.1,2296.8,5.40163725]
[1625480832090,1.0,2297.0,2296.8,5.40163725]
[1625480832191,1.0,2297.0,2296.5,7.21603571]
[1625480832304,1.0,2297.0,2296.5,6.31713571]
[1625480832396,1.0,2297.0,2296.5,4.12713571]
[1625480832493,1.0,2297.0,2296.3,8.60533153]
[1625480832494,1.0,2297.0,2296.3,1.81735335]
[1625480832592,1.0,2297.0,2295.9,3.95016536]
[1625480832692,1.1,2296.9,2295.9,3.95016536]
[1625480832793,1.0,2296.8,2295.9,3.95016536]
[1625480832893,2.1,2296.8,2295.9,2.77026536]
[1625480832993,2.1,2296.8,2295.9,1.12106536]
[1625480833091,2.1,2296.8,2295.9,0.81486536]
[1625480833291,2.1,2296.8,2295.5,13.6723]
[1625480833392,2.1,2296.8,2295.5,12.3473]
[1625480833592,4.41054,2295.6,2295.5,12.3473]
[1625480833792,7.60334,2295.6,2295.5,11.4559]
[1625480834093,7.60334,2295.6,2295.5,11.3319]
[1625480834195,7.60334,2295.6,2295.5,10.7189]
[1625480834496,7.60334,2295.6,2295.5,9.4498]
[1625480834595,7.60334,2295.6,2295.5,7.8009]
[1625480834693,7.60334,2295.6,2295.5,6.5623]
[1625480834794,8.46984,2295.6,2293.7,13.6909]
[1625480834996,7.46984,2295.6,2293.7,13.6909]
[1625480835294,1.0,2295.5,2293.7,13.6909]
[1625480835494,1.0,2295.5,2293.8,15.713984]
[1625480835594,2.20527,2294.8,2294.7,2.20527]
[1625480835907,0.8665,2295.6,2294.7,2.20527]
[1625480835997,0.8665,2295.6,2294.8,15.877695]
[1625480836297,0.8665,2295.6,2294.7,2.20527]
[1625480836498,42.4357,2295.4,2294.7,2.20527]
[1625480836601,42.4357,2295.4,2294.8,15.75564]
[1625480837651,43.4357,2295.4,2295.3,2.20527]
[1625480839119,43.4357,2295.4,2294.7,2.20527]
[1625480839468,43.4357,2295.4,2293.9,2.351]
[1625480839573,43.4357,2295.4,2293.7,13.6909]
[1625480839669,2.20527,2294.6,2294.5,2.20527]
[1625480840069,42.4357,2295.4,2294.5,5.27837]
[1625480841322,43.4357,2295.4,2294.5,5.27837]
[1625480841674,2.20527,2295.0,2294.9,2.20527]
[1625480845536,42.4357,2295.4,2294.9,2.20527]
[1625480845636,44.64097,2295.4,2295.3,2.20527]
[1625480845735,44.64097,2295.4,2295.3,4.77707]
[1625480846739,44.64097,2295.4,2295.3,20.680655]
[1625480847789,2.20527,2295.6,2295.3,20.680655]
[1625480847895,1.0,2296.5,2295.3,20.680655]
[1625480848092,48.4293,2297.1,2295.3,20.680655]
[1625480848191,1.0,2297.0,2295.3,20.680655]
[1625480849693,2.20527,2296.7,2296.6,2.20527]
[1625480849793,3.20527,2296.7,2296.6,2.20527]
[1625480851660,5.41054,2296.7,2296.6,2.20527]
[1625480853518,5.41054,2296.7,2296.4,2.20527]
[1625480856832,4.41054,2296.7,2296.4,2.20527]
[1625480856930,5.41054,2296.7,2296.4,2.20527]
[1625480857733,5.41054,2296.7,2296.4,4.41054]
[1625480857834,8.85214,2296.7,2296.4,4.41054]
[1625480859839,5.41054,2296.7,2296.4,4.41054]
[1625480859988,4.41054,2296.7,2296.4,4.41054]
[1625480860294,5.41054,2296.7,2296.4,4.41054]
[1625480860388,4.41054,2296.7,2296.4,4.41054]
[1625480861789,5.41054,2296.7,2296.4,4.41054]
[1625480862540,4.41054,2296.7,2296.4,4.41054]
[1625480866899,5.41054,2296.7,2296.4,4.41054]
[1625480867403,7.60864,2296.7,2296.4,4.41054]
[1625480867805,6.60864,2296.7,2296.4,4.41054]
[1625480868410,2.1981,2296.7,2296.4,4.41054]
[1625480868508,59.7809,2298.4,2296.4,4.41054]
[1625480868709,0.8786,2299.4,2296.4,4.41054]
[1625480868811,0.8786,2299.4,2296.5,15.726234]
[1625480869324,0.8786,2299.4,2296.5,30.675634]
[1625480869821,2.20527,2297.9,2297.8,2.20527]
[1625480869922,6.70307,2297.9,2297.8,2.20527]
[1625480871841,7.90834,2297.9,2297.8,2.20527]
[1625480872229,8.90834,2297.9,2297.8,2.20527]
[1625480872427,7.90834,2297.9,2297.8,2.20527]
[1625480873579,8.90834,2297.9,2297.8,2.20527]
[1625480874734,7.90834,2297.9,2297.8,2.20527]
[1625480875788,8.90834,2297.9,2297.8,2.20527]
[1625480876640,8.90834,2297.9,2297.6,2.20527]
[1625480877343,8.90834,2297.9,2296.5,14.9494]
[1625480877845,2.20527,2297.4,2297.3,2.20527]
[1625480877946,5.52657,2297.4,2297.3,2.20527]
[1625480878749,6.52657,2297.4,2297.3,2.20527]
[1625480879851,8.73184,2297.4,2297.3,2.20527]
[1625480881606,7.73184,2297.4,2297.3,2.20527]
[1625480885226,8.73184,2297.4,2297.3,2.20527]
[1625480885427,8.73184,2297.4,2296.5,14.9494]
[1625480885878,2.20527,2296.7,2296.6,2.20527]
[1625480885978,5.00457,2296.7,2296.6,2.20527]
[1625480886080,5.00457,2296.7,2296.6,18.073954]
[1625480886481,6.00457,2296.7,2296.6,18.073954]
[1625480886581,6.00457,2296.7,2296.6,2.20527]
[1625480887933,8.20984,2296.7,2296.6,2.20527]
[1625480888084,7.20984,2296.7,2296.6,2.20527]
[1625480888683,8.20984,2296.7,2296.6,2.20527]
[1625480894146,7.20984,2296.7,2296.6,2.20527]
[1625480895500,5.00457,2296.7,2296.6,2.20527]
[1625480904842,6.00457,2296.7,2296.6,2.20527]
[1625480914443,5.00457,2296.7,2296.6,2.20527]
[1625480914545,2.20527,2296.7,2296.6,2.20527]
[1625480915895,3.20527,2297.1,2296.6,2.20527]
[1625480916095,3.20527,2297.1,2297.0,2.20527]
[1625480917256,3.32920073,2298.4,2297.0,2.20527]
[1625480917753,3.32920073,2298.4,2297.1,15.898284]
[1625480917855,3.32830881,2299.2,2297.8,48.6906]
[1625480918053,3.32830881,2299.2,2297.8,50.9753]
[1625480918154,2.20527,2299.1,2299.0,2.20527]
[1625480918466,3.20527,2299.1,2299.0,2.20527]
[1625480918757,3.20527,2299.1,2298.8,2.20527]
[1625480920112,2.20527,2298.9,2298.8,2.20527]
[1625480920216,3.20527,2298.9,2297.2,14.4252]
[1625480920312,6.71847,2298.9,2297.2,14.4252]
[1625480920813,6.71847,2298.9,2297.3,15.883914]
[1625480922124,2.20527,2298.4,2298.1,2.20527]
[1625480922225,1.0,2298.3,2298.1,2.20527]
[1625480923589,4.79497,2298.4,2298.1,2.20527]
[1625480923691,2.20527,2298.4,2298.1,2.20527]
[1625480923839,1.0,2298.3,2298.1,2.20527]
[1625480923937,2.20527,2298.4,2298.1,2.20527]
[1625480924137,2.20527,2298.4,2298.2,2.20527]
[1625480927270,3.20527,2298.4,2298.2,2.20527]
[1625480928106,2.20527,2298.3,2297.3,2.20527]
[1625480928216,1.0,2298.2,2297.3,2.20527]
[1625480929660,1.0,2298.2,2297.2,14.4252]
[1625480930163,2.20527,2297.3,2297.2,14.4252]
[1625480930260,4.64547,2297.3,2296.9,2.20527]
[1625480930962,4.64547,2297.3,2297.0,15.71189]
[1625480932164,4.64547,2297.3,2297.2,2.20527]
[1625480932965,4.64547,2297.3,2296.9,2.20527]
[1625480933166,2.4402,2297.3,2296.9,2.20527]
[1625480933619,2.4402,2297.3,2297.0,15.754354]
[1625480934167,2.4402,2297.3,2297.2,2.20527]
[1625480935317,2.20527,2297.5,2297.2,2.20527]
[1625480936172,2.20527,2297.5,2297.2,4.41054]
[1625480936672,2.20527,2297.5,2295.9,44.1318]
[1625480936772,4.48727,2297.5,2295.9,44.1318]
[1625480937283,5.48727,2297.5,2295.9,44.1318]
[1625480937382,4.48727,2297.5,2296.0,15.678091]
[1625480937587,4.48727,2297.5,2296.0,15.8071249]
[1625480937934,4.48727,2297.5,2296.0,15.678091]
[1625480938236,4.48727,2297.5,2297.4,2.20527]
[1625480941798,4.48727,2297.5,2295.9,44.1318]
[1625480942149,4.48727,2297.5,2296.0,0.12903549]
[1625480942248,4.48727,2297.5,2297.3,2.20527]
[1625480942650,4.48727,2297.5,2297.4,15.698977]
[1625480943149,5.48727,2297.5,2297.3,2.20527]
[1625480945861,5.48727,2297.5,2297.1,2.20527]
[1625480946261,2.20527,2297.2,2297.1,2.20527]
[1625480946362,3.20527,2297.2,2297.1,2.20527]
[1625480947416,3.20527,2297.2,2296.7,2.20527]
[1625480948320,2.20527,2296.8,2296.7,2.20527]
[1625480948416,4.54457,2296.8,2296.7,2.20527]
[1625480948716,2.3393,2296.8,2295.9,44.1318]
[1625480949267,2.3393,2296.8,2296.0,15.762678]
[1625480950269,2.3393,2296.8,2296.7,4.41054]
[1625480953439,3.20527,2297.2,2296.7,4.41054]
[1625480954341,3.20527,2297.2,2297.0,2.20527]
[1625480956195,2.20527,2297.2,2297.0,2.20527]
[1625480956294,2.20527,2297.2,2297.1,2.20527]
[1625480956402,3.20527,2297.2,2297.1,2.20527]
[1625480956502,3.20527,2297.2,2297.1,17.90644]
[1625480956902,1.0,2297.2,2297.1,17.90644]
[1625480958603,1.0,2297.2,2297.1,2.20527]
[1625480961407,1.0,2297.3,2297.1,2.20527]
[1625480968545,4.41054,2297.4,2297.1,2.20527]
[1625480968645,1.0,2297.7,2297.1,2.20527]
[1625480968945,1.0,2297.7,2297.2,15.824329]
[1625480970400,1.0,2297.7,2297.6,2.20527]
[1625480974063,2.20527,2297.8,2297.6,50.54597]
[1625480974467,2.20527,2297.8,2297.7,2.20527]
[1625480974666,2.20527,2297.8,2297.7,18.125722]
[1625480978172,3.20527,2298.0,2297.7,18.125722]
[1625480978173,1.0,2298.0,2297.7,18.125722]
[1625480978272,1.0,2298.4,2297.7,18.125722]
[1625480978424,1.0,2298.4,2298.3,2.20527]
[1625480979424,1.0,2298.4,2298.3,18.110849]
[1625480979674,4.77376259,2298.7,2298.3,18.110849]
[1625480979975,2.20527,2298.7,2298.3,18.110849]
[1625480980074,2.56804308,2298.8,2298.3,18.110849]
[1625480980178,3.33845601,2299.0,2298.3,18.110849]
[1625480980475,3.33845601,2299.0,2298.9,4.41054]
[1625480980575,3.33845601,2299.0,2298.9,7.75354]
[1625480980676,2.56715046,2299.7,2298.9,7.75354]
[1625480980925,2.56715046,2299.7,2298.9,23.43231]
[1625480981224,1.0,2299.6,2298.9,23.43231]
[1625480981780,1.0,2299.6,2299.3,43.6163]
[1625480982078,3.33689447,2300.2,2299.4,15.815381]
[1625480982179,1.0,2300.1,2299.4,15.815381]
[1625480982527,2.20527,2299.8,2299.7,2.20527]
[1625480982630,3.20527,2299.8,2299.7,2.20527]
[1625480982827,3.20527,2299.8,2298.3,55.9192]
[1625480982927,5.63037,2299.8,2298.3,55.9192]
[1625480983041,5.63037,2299.8,2297.7,14.2968]
[1625480983478,5.63037,2299.8,2297.8,15.83273]
[1625480984030,8.96407632,2299.8,2297.8,15.83273]
[1625480984432,8.96407632,2299.8,2297.9,45.1419]
[1625480984532,2.20527,2299.1,2299.0,2.20527]
[1625480984633,6.55607,2299.1,2299.0,2.20527]
[1625480986087,6.55607,2299.1,2297.9,45.1419]
[1625480986186,6.55607,2299.1,2297.7,14.2968]
[1625480986491,2.20527,2298.8,2298.6,2.20527]
[1625480986591,1.0,2298.7,2298.6,2.20527]
[1625480989349,2.20527,2298.8,2298.6,2.20527]
[1625480989800,2.20527,2298.8,2298.7,15.822735]
[1625480989901,2.20527,2298.8,2298.7,54.510335]
[1625480990200,3.330939,2300.2,2298.7,54.510335]
[1625480990500,2.20527,2299.8,2299.7,2.20527]
[1625480990600,3.20527,2299.8,2299.7,2.20527]
[1625480990850,1.0,2299.8,2299.7,2.20527]
[1625480992509,3.20527,2299.8,2299.7,2.20527]
[1625480993905,3.20527,2299.8,2299.5,2.20527]
[1625480994506,3.20527,2299.8,2299.7,2.20527]
[1625480995361,1.0,2299.8,2299.7,2.20527]
[1625480995662,1.0,2300.0,2299.7,2.20527]
[1625480996515,1.0,2300.0,2299.8,2.20527]
[1625481000122,1.0,2300.0,2298.8,3.3256]
[1625481000223,1.0,2300.0,2298.7,38.6876]
[1625481000623,2.20527,2299.8,2299.6,2.20527]
[1625481000727,1.0,2299.7,2299.6,2.20527]
[1625481002250,53.3713,2300.5,2299.6,2.20527]
[1625481002349,1.0,2300.4,2299.6,2.20527]
[1625481002653,2.20527,2300.3,2300.2,2.20527]
[1625481002751,3.20527,2300.3,2300.2,2.20527]
[1625481004408,3.20527,2300.3,2298.8,13.7509]
[1625481004508,6.04487,2300.3,2298.8,13.7509]
[1625481004606,2.20527,2299.4,2299.3,2.20527]
[1625481004709,5.42077,2299.4,2299.3,2.20527]
[1625481005106,4.42077,2299.4,2299.3,2.20527]
[1625481006610,2.2155,2299.4,2299.3,2.20527]
[1625481007361,3.2155,2299.4,2299.3,2.20527]
[1625481007472,3.2155,2299.4,2298.8,13.7509]
[1625481007963,54.4274,2299.2,2298.8,13.7509]
[1625481008074,1.0,2299.1,2298.8,13.7509]
[1625481008163,1.0,2299.1,2296.9,5.0]
[1625481008264,1.0,2299.1,2297.0,14.7611]
[1625481008466,1.0,2299.1,2297.0,19.7611]
[1625481008663,2.20527,2299.0,2298.8,2.20527]
[1625481008763,4.2851,2298.9,2298.8,2.20527]
[1625481011967,4.2851,2298.9,2297.0,14.7611]
[1625481012570,4.2851,2298.9,2298.2,15.818815]
[1625481012671,4.2851,2298.9,2298.8,2.20527]
[1625481018138,4.2851,2298.9,2297.0,14.7611]
[1625481018688,2.20527,2298.4,2298.2,2.20527]
[1625481018787,1.0,2298.3,2298.2,2.20527]
[1625481023005,54.1643,2298.3,2298.2,2.20527]
[1625481024056,54.1643,2298.3,2297.6,0.19]
[1625481024718,4.41054,2297.7,2297.6,0.19]
[1625481024810,7.67774,2297.7,2297.6,0.19]
[1625481025488,5.47247,2297.7,2297.6,0.19]
[1625481025878,4.47247,2297.7,2297.6,0.19]
[1625481025965,5.47247,2297.7,2297.6,0.19]
[1625481026064,3.20527,2297.7,2297.6,0.19]
[1625481026715,5.41054,2297.7,2297.6,0.19]
[1625481031282,7.93624,2297.7,2297.6,0.19]
[1625481043472,5.41054,2297.7,2297.6,0.19]
[1625481046231,8.05244,2297.7,2297.6,0.19]
[1625481053958,36.16754,2298.0,2297.6,0.19]
[1625481054058,0.8787,2298.1,2297.6,0.19]
[1625481054161,3.32917779,2298.7,2297.6,0.19]
[1625481054668,3.32917779,2298.7,2298.2,48.9097]
[1625481054768,3.32917779,2298.7,2298.3,1.0]
[1625481054970,3.32917779,2298.7,2298.6,4.41054]
[1625481055269,3.32917779,2298.7,2298.6,5.41054]
[1625481055370,2.20527,2298.9,2298.6,5.41054]
[1625481055672,2.20527,2298.9,2298.6,4.41054]
[1625481056170,2.20527,2298.9,2298.6,2.20527]
[1625481056624,2.20527,2298.9,2298.0,1.0]
[1625481056724,10.33337,2298.9,2298.0,1.0]
[1625481056823,10.33337,2298.9,2297.6,0.19]
[1625481057024,4.41054,2297.7,2297.6,0.19]
[1625481057226,41.43644,2297.7,2297.6,0.19]
[1625481058976,41.43644,2297.7,2297.6,2.39527]
[1625481060183,41.43644,2297.7,2297.6,0.19]
[1625481064283,37.0259,2297.7,2297.6,0.19]
[1625481065035,41.43644,2297.7,2297.6,0.19]
[1625481070846,41.43644,2297.7,2297.6,0.0001]
[1625481070946,41.43644,2297.7,2297.3,2.20527]
[1625481071048,2.20527,2297.4,2296.7,2.20527]
[1625481071149,4.92477,2297.4,2296.7,2.20527]
[1625481073054,4.41054,2296.8,2296.7,2.20527]
[1625481076231,4.41054,2296.8,2296.7,3.20527]
[1625481079440,2.20527,2296.8,2296.7,3.20527]
[1625481080042,5.13197,2296.8,2296.7,3.20527]
[1625481081099,7.33724,2296.8,2296.7,3.20527]
[1625481082901,2.9267,2296.8,2296.7,2.20527]
[1625481085114,2.20527,2297.1,2296.7,2.20527]
[1625481087130,2.20527,2297.1,2297.0,2.20527]
[1625481087531,2.20527,2297.1,2297.0,1.04527]
[1625481087782,2.20527,2297.1,2296.7,2.20527]
[1625481089233,4.44777,2296.8,2296.7,2.20527]
[1625481091347,4.44777,2296.8,2296.7,1.04527]
[1625481091449,53.7028,2296.6,2296.4,2.20527]
[1625481092249,53.7028,2296.6,2296.4,3.20527]
[1625481092449,2.20527,2296.8,2296.4,3.20527]
[1625481093205,2.20527,2296.8,2296.7,2.20527]
[1625481093305,2.20527,2296.8,2296.7,5.46267]
[1625481096337,2.20527,2297.1,2296.7,5.46267]
[1625481096725,2.20527,2297.1,2296.8,59.161138]
[1625481096822,2.20527,2297.1,2296.9,1.0]
[1625481097173,1.28235533,2297.9,2297.0,15.832699]
[1625481097275,2.20527,2297.5,2297.0,18.037969]
[1625481097372,2.20527,2297.5,2297.1,1.0]
[1625481098479,42.6027,2297.4,2297.1,1.0]
[1625481098580,45.0418,2297.4,2297.1,1.0]
[1625481099284,2.20527,2297.2,2297.1,1.0]
[1625481103937,2.20527,2297.2,2296.9,2.20527]
[1625481104040,2.20527,2297.2,2296.9,3.20527]
[1625481104442,2.20527,2297.2,2296.9,1.0]
[1625481105293,2.20527,2297.0,2296.9,1.0]
[1625481107357,2.20527,2297.0,2296.8,1.0]
[1625481113786,3.85678887,2297.5,2296.8,1.0]
[1625481113886,3.85678887,2297.5,2296.9,1.0]
[1625481114387,6.42798146,2298.4,2296.9,1.0]
[1625481114388,3.85742255,2297.6,2296.9,1.0]
[1625481115488,4.41054,2297.0,2296.9,1.0]
[1625481119000,4.41054,2297.0,2296.8,1.0]
[1625481123209,45.6814,2297.6,2296.8,1.0]
[1625481123309,45.6814,2297.6,2296.8,3.7833]
[1625481123612,2.20527,2297.5,2297.3,2.20527]
[1625481123808,2.20527,2297.5,2297.3,3.20527]
[1625481123908,45.6814,2297.6,2297.3,1.0]
[1625481125613,4.41054,2297.4,2297.3,3.20527]
[1625481127628,4.41054,2297.4,2297.3,1.0]
[1625481130637,4.41054,2297.4,2297.0,2.20527]
[1625481131143,4.41054,2297.4,2297.1,1.0]
[1625481131941,4.41054,2297.4,2297.0,2.20527]
[1625481132241,4.41054,2297.4,2297.0,3.20527]
[1625481133645,2.20527,2297.1,2297.0,3.20527]
[1625481133844,5.63997,2297.1,2297.0,3.20527]
[1625481133944,5.63997,2297.1,2297.0,2.20527]
[1625481134845,5.63997,2297.1,2296.8,2.20527]
[1625481135047,5.63997,2297.1,2296.8,3.20527]
[1625481135597,3.4347,2297.1,2296.8,1.0]
[1625481136049,4.41054,2296.9,2296.8,1.0]
[1625481140409,4.41054,2296.9,2296.7,1.0]
[1625481146830,37.1967,2296.8,2296.7,1.0]
[1625481149241,37.1967,2296.8,2296.5,1.0]
[1625481149344,37.1967,2296.8,2296.1,1.23262434]
[1625481149443,37.1967,2296.8,2296.5,1.0]
[1625481149542,37.1967,2296.8,2296.1,1.23262434]
[1625481150142,2.20527,2296.7,2296.6,2.20527]
[1625481150445,2.20527,2296.7,2296.6,3.20527]
[1625481152202,4.41054,2296.7,2296.6,3.20527]
[1625481155457,4.41054,2296.7,2296.6,2.20527]
[1625481155807,4.41054,2296.7,2296.6,3.20527]
[1625481155907,37.1967,2296.8,2296.6,1.0]
[1625481156407,37.1967,2296.8,2296.6,3.20527]
[1625481156508,4.41054,2296.7,2296.6,3.20527]
[1625481166182,41.6411,2297.1,2296.6,1.0]
[1625481166689,4.41054,2296.7,2296.6,3.20527]
[1625481176158,2.20527,2296.7,2296.6,3.20527]
[1625481177461,2.20527,2296.7,2296.6,2.20527]
[1625481177761,2.20527,2296.7,2296.6,3.20527]
[1625481190249,2.20527,2296.9,2296.6,3.20527]
[1625481190849,2.20527,2296.9,2296.8,2.20527]
[1625481190949,2.20527,2296.9,2296.8,6.54257]
[1625481191049,2.20527,2297.4,2296.8,6.54257]
[1625481191701,2.20527,2297.4,2297.2,42.0907]
[1625481191802,2.20527,2297.4,2297.3,1.0]
[1625481191902,2.20527,2297.4,2297.3,3.1774]
[1625481192856,2.20527,2297.4,2297.3,7.58794]
[1625481197475,2.20527,2297.4,2297.3,2.1774]
[1625481197586,2.20527,2297.4,2297.0,1.0]
[1625481198125,2.20527,2297.4,2296.5,1.23921018]
[1625481198424,2.20527,2297.4,2296.2,4.759]
[1625481198425,2.20527,2297.4,2296.4,1.23981494]
[1625481198624,2.20527,2297.4,2296.5,1.0]
[1625481198926,2.20527,2297.4,2297.1,2.20527]
[1625481200880,2.20527,2297.2,2297.1,2.20527]
[1625481200980,54.22067,2297.2,2297.1,2.20527]
[1625481204803,2.20527,2297.2,2297.1,2.20527]
[1625481210216,52.93237,2297.2,2297.1,2.20527]
[1625481229193,2.20527,2297.2,2297.1,3.20527]
[1625481229397,2.20527,2297.4,2297.1,3.20527]
[1625481229497,4.12390442,2297.6,2297.1,3.20527]
[1625481230097,4.12390442,2297.6,2297.5,46.0244]
[1625481230198,4.12390442,2297.6,2297.5,48.5907]
[1625481230298,4.12390442,2297.6,2297.5,49.5907]
[1625481230550,4.12325048,2298.2,2297.5,49.5907]
[1625481231062,6.32852048,2298.2,2298.1,4.41054]
[1625481231265,6.32852048,2298.2,2298.1,8.42804]
[1625481231413,2.20527,2298.2,2298.1,8.42804]
[1625481233468,2.20527,2298.2,2298.1,7.42804]
[1625481233566,2.20527,2298.2,2298.1,4.41054]
[1625481234419,2.20527,2298.2,2297.5,46.0244]
[1625481234518,2.20527,2298.2,2297.6,1.0]
[1625481234721,4.00735412,2298.2,2297.6,1.0]
[1625481235119,2.20527,2297.8,2297.7,2.20527]
[1625481235223,1.20527,2297.8,2297.7,2.20527]
[1625481235322,2.20527,2297.8,2297.7,2.20527]
[1625481235425,2.20527,2297.8,2297.1,0.19]
[1625481235722,44.0358,2297.5,2297.1,0.19]
[1625481235822,45.0358,2297.5,2297.1,0.19]
[1625481237125,2.20527,2297.3,2297.2,2.20527]
[1625481237225,3.20527,2297.3,2297.2,2.20527]
[1625481238281,2.20527,2297.3,2297.2,2.20527]
[1625481238479,2.20527,2297.3,2297.2,46.11147]
[1625481239835,2.80183156,2298.0,2297.2,46.11147]
[1625481239933,1.0,2298.0,2297.2,48.32697]
[1625481240434,2.80158774,2298.0,2297.2,48.32697]
[1625481240838,1.0,2298.0,2297.2,48.32697]
[1625481241135,2.20527,2297.4,2297.2,50.53224]
[1625481242189,2.20527,2297.4,2297.2,6.62604]
[1625481242287,3.20527,2297.4,2297.2,4.41054]
[1625481242588,2.20527,2297.4,2297.2,4.41054]
[1625481261949,43.80557,2297.4,2297.2,4.41054]
[1625481262250,44.80557,2297.4,2297.2,4.41054]
[1625481266162,5.0,2297.3,2296.3,5.11919552]
[1625481266262,1.0,2297.2,2296.3,0.43219552]
[1625481266366,1.15,2296.9,2296.3,0.43219552]
[1625481266464,3.7946,2296.8,2296.3,0.43219552]
[1625481266564,5.0,2296.7,2295.4,1.74436829]
[1625481266664,1.0,2296.6,2295.4,1.74436829]
[1625481266764,43.5379,2295.5,2295.4,1.74436829]
[1625481266862,48.0353,2295.5,2295.4,1.74436829]
[1625481267266,48.0353,2295.5,2294.6,4.98390941]
[1625481267567,2.20527,2294.7,2294.6,7.18917941]
[1625481268068,46.59437,2294.7,2294.6,7.18917941]
[1625481268670,2.20527,2294.7,2294.6,2.20527]
[1625481269076,2.20527,2295.0,2294.6,2.20527]
[1625481269228,1.0,2295.9,2294.6,4.41437]
[1625481269320,5.14674819,2296.8,2294.6,20.29486929]
[1625481269521,2.20527,2296.3,2296.2,2.20527]
[1625481269625,2.20527,2296.3,2296.2,5.72707]
[1625481270024,2.20527,2296.3,2296.2,59.76787]
[1625481271524,4.41054,2296.3,2296.2,59.76787]
[1625481272577,4.41054,2296.3,2296.2,5.72707]
[1625481272780,5.41054,2296.3,2296.2,5.72707]
[1625481273479,5.41054,2296.3,2296.2,2.20527]
[1625481276239,5.41054,2296.3,2295.7,2.20527]
[1625481277642,2.20527,2295.8,2295.7,2.20527]
[1625481283319,3.20527,2295.8,2295.7,2.20527]
[1625481283518,2.20527,2295.8,2295.7,2.20527]
[1625481285922,2.20527,2295.8,2295.6,2.20527]
[1625481287376,3.20527,2295.8,2295.6,2.20527]
[1625481287677,2.20527,2295.7,2295.6,2.20527]
[1625481287778,3.20527,2295.7,2294.7,18.9894]
[1625481287976,3.20527,2295.7,2294.7,14.2304]
[1625481288176,42.4282,2295.4,2294.7,14.2304]
[1625481288376,43.4282,2295.4,2294.7,14.2304]
[1625481289277,46.9801,2295.4,2294.7,14.2304]
[1625481289627,46.9801,2295.4,2295.3,2.20527]
[1625481290029,46.9801,2295.4,2294.7,14.2304]
[1625481291634,2.20527,2294.9,2294.8,2.20527]
[1625481294495,3.20527,2294.9,2294.8,2.20527]
[1625481294792,3.20527,2294.9,2293.9,4.759]
[1625481294897,3.20527,2294.9,2293.8,14.7865]
[1625481295341,43.7492,2294.8,2293.8,14.7865]
[1625481295459,1.0,2294.7,2293.8,14.7865]
[1625481295563,4.306,2294.7,2293.8,14.7865]
[1625481295754,4.41054,2293.9,2293.8,14.7865]
[1625481296156,4.41054,2293.9,2293.5,2.20527]
[1625481297695,4.41054,2293.9,2293.8,2.20527]
[1625481299749,5.41054,2293.9,2293.8,2.20527]
[1625481305824,5.41054,2293.9,2293.2,44.8413]
[1625481307779,3.20527,2293.9,2293.7,2.20527]
[1625481307879,3.20527,2293.9,2293.7,5.09517]
[1625481308379,1.0,2293.9,2293.7,5.09517]
[1625481308479,1.0,2293.8,2293.7,5.09517]
[1625481308580,13.792,2295.0,2293.7,5.09517]
[1625481309591,1.0,2294.9,2293.7,5.09517]
[1625481309792,2.20527,2293.9,2293.7,5.09517]
[1625481310894,1.0,2294.8,2293.7,5.09517]
[1625481311547,1.0,2294.8,2293.7,2.8899]
[1625481311644,1.0,2294.8,2293.5,2.20527]
[1625481311845,2.20527,2293.7,2293.5,2.20527]
[1625481321230,3.20527,2293.7,2292.6,14.6358]
[1625481321431,5.71587,2293.7,2292.6,14.6358]